[Event "*** Titled Tuesday Blitz"]
[Site "Chess.com"]
[Date "2018.12.04"]
[Round "9"]
[White "ChessQueen"]
[Black "GreatDamnedRedSpot"]
[Result "1-0"]
[WhiteElo "2551"]
[BlackElo "2330"]
[TimeControl "180+2"]
[EndTime "15:07:17 PST"]
[Termination "ChessQueen won by resignation"]

1. e4 {[%clk 0:03:01.9]} 1... e6 {[%clk 0:02:58.9]} 2. d4 {[%clk 0:03:02.2]}
2... d5 {[%clk 0:03:00]} 3. exd5 {[%clk 0:03:03.4]} 3... exd5 {[%clk 0:03:00.7]}
4. Nf3 {[%clk 0:03:04.9]} 4... c6 {[%clk 0:03:01.7]} 5. Bd3 {[%clk 0:03:03.9]}
5... Bd6 {[%clk 0:03:02.7]} 6. O-O {[%clk 0:03:04.9]} 6... Ne7 {[%clk
0:03:04.2]} 7. c4 {[%clk 0:03:05.6]} 7... f6 {[%clk 0:02:37.2]} 8. Nc3 {[%clk
0:02:56.6]} 8... O-O {[%clk 0:02:36.9]} 9. Qc2 {[%clk 0:02:51.9]} 9... g6 {[%clk
0:02:34.3]} 10. cxd5 {[%clk 0:02:31]} 10... cxd5 {[%clk 0:02:22.3]} 11. Qb3
{[%clk 0:02:31.8]} 11... Kg7 {[%clk 0:02:15.8]} 12. Kh1 {[%clk 0:02:22.3]} 12...
Nbc6 {[%clk 0:02:11]} 13. Re1 {[%clk 0:02:19.5]} 13... Na5 {[%clk 0:02:06.6]}
14. Qc2 {[%clk 0:02:11.5]} 14... Nac6 {[%clk 0:02:07.4]} 15. Qd2 {[%clk
0:02:10.2]} 15... Bf5 {[%clk 0:02:04.7]} 16. Bxf5 {[%clk 0:01:44.9]} 16... Nxf5
{[%clk 0:02:04.7]} 17. h3 {[%clk 0:01:43.7]} 17... Bb4 {[%clk 0:01:36.9]} 18.
Qd3 {[%clk 0:01:32.4]} 18... Nd6 {[%clk 0:01:26.2]} 19. Nd2 {[%clk 0:01:23.9]}
19... Bxc3 {[%clk 0:01:21.6]} 20. bxc3 {[%clk 0:01:24.5]} 20... Qd7 {[%clk
0:01:16.7]} 21. Ba3 {[%clk 0:01:20.2]} 21... Rfe8 {[%clk 0:01:18.2]} 22. Kg1
{[%clk 0:01:08.8]} 22... Na5 {[%clk 0:01:02.4]} 23. Bxd6 {[%clk 0:01:06]} 23...
Qxd6 {[%clk 0:01:03.8]} 24. Qb5 {[%clk 0:01:07.1]} 24... b6 {[%clk 0:01:05.1]}
25. Rxe8 {[%clk 0:01:06.9]} 1-0

[Event "*** Titled Tuesday Blitz"]
[Site "Chess.com"]
[Date "2018.12.04"]
[Round "9"]
[White "dyziotomi99"]
[Black "AliKa2810"]
[Result "0-1"]
[WhiteElo "2617"]
[BlackElo "2503"]
[TimeControl "180+2"]
[EndTime "15:07:18 PST"]
[Termination "AliKa2810 won by resignation"]

1. e4 {[%clk 0:03:01.9]} 1... e5 {[%clk 0:01:51.7]} 2. Nf3 {[%clk 0:03:02]} 2...
Nf6 {[%clk 0:01:52.6]} 3. Nxe5 {[%clk 0:03:02]} 3... d6 {[%clk 0:01:53.9]} 4.
Nf3 {[%clk 0:03:03.1]} 4... Nxe4 {[%clk 0:01:55.5]} 5. d4 {[%clk 0:03:04]} 5...
d5 {[%clk 0:01:56.3]} 6. Bd3 {[%clk 0:03:04.9]} 6... Be7 {[%clk 0:01:57.8]} 7.
O-O {[%clk 0:03:05.6]} 7... Nc6 {[%clk 0:01:59.3]} 8. c4 {[%clk 0:03:06.6]} 8...
Nb4 {[%clk 0:01:57.5]} 9. cxd5 {[%clk 0:03:02]} 9... Nxd3 {[%clk 0:01:57.4]} 10.
Qxd3 {[%clk 0:03:02.9]} 10... Qxd5 {[%clk 0:01:59]} 11. Re1 {[%clk 0:03:01.9]}
11... Bf5 {[%clk 0:02:00.5]} 12. Nc3 {[%clk 0:02:59.1]} 12... Nxc3 {[%clk
0:02:01.5]} 13. Qxc3 {[%clk 0:03:00.2]} 13... Be6 {[%clk 0:01:38.4]} 14. Qxc7
{[%clk 0:02:55.8]} 14... Rc8 {[%clk 0:01:32.7]} 15. Qe5 {[%clk 0:02:54.8]} 15...
Qxe5 {[%clk 0:01:29.7]} 16. Rxe5 {[%clk 0:02:51.5]} 16... Bf6 {[%clk 0:01:29.6]}
17. Re1 {[%clk 0:02:50.5]} 17... O-O {[%clk 0:01:30.9]} 18. Bf4 {[%clk
0:02:46.6]} 18... Rc2 {[%clk 0:01:31.1]} 19. b3 {[%clk 0:02:47.5]} 19... Rfc8
{[%clk 0:01:30.1]} 20. Be5 {[%clk 0:02:47.8]} 20... Be7 {[%clk 0:01:25.5]} 21.
Red1 {[%clk 0:02:31]} 21... Bd5 {[%clk 0:01:24.1]} 22. Ne1 {[%clk 0:02:31.7]}
22... R2c3 {[%clk 0:01:09.4]} 23. f3 {[%clk 0:02:29.5]} 23... f6 {[%clk
0:01:09.2]} 24. Bg3 {[%clk 0:02:29.6]} 24... Kf7 {[%clk 0:01:10.1]} 25. Nd3
{[%clk 0:02:29.9]} 25... Ba3 {[%clk 0:01:09.1]} 26. Nf4 {[%clk 0:02:28.2]} 26...
Rd8 {[%clk 0:01:04.5]} 27. Nxd5 {[%clk 0:02:28.1]} 27... Rxd5 {[%clk 0:01:04.9]}
28. Rd2 {[%clk 0:02:28.7]} 28... Bc1 {[%clk 0:00:53.3]} 29. Rd1 {[%clk
0:02:29.7]} 29... Be3+ {[%clk 0:00:47.6]} 30. Bf2 {[%clk 0:02:31.5]} 30... Bxf2+
{[%clk 0:00:46.8]} 31. Kxf2 {[%clk 0:02:33.4]} 31... Rc2+ {[%clk 0:00:48.1]} 32.
Kf1 {[%clk 0:02:33.2]} 32... Rg5 {[%clk 0:00:46.7]} 33. g4 {[%clk 0:02:33.7]}
33... Rxh2 {[%clk 0:00:42.9]} 34. Rac1 {[%clk 0:02:34.1]} 34... h5 {[%clk
0:00:37.1]} 35. Rc7+ {[%clk 0:02:33.9]} 35... Ke6 {[%clk 0:00:38.3]} 36. gxh5
{[%clk 0:02:29.7]} 36... Rh1+ {[%clk 0:00:35.5]} 0-1

[Event "*** Titled Tuesday Blitz"]
[Site "Chess.com"]
[Date "2018.12.04"]
[Round "9"]
[White "Alopekos"]
[Black "FMJoseHerrera"]
[Result "0-1"]
[WhiteElo "2487"]
[BlackElo "2571"]
[TimeControl "180+2"]
[EndTime "15:07:27 PST"]
[Termination "FMJoseHerrera won on time"]

1. e4 {[%clk 0:03:01.9]} 1... c5 {[%clk 0:03:00.8]} 2. Nf3 {[%clk 0:03:03.1]}
2... e6 {[%clk 0:03:01.6]} 3. d4 {[%clk 0:03:04.4]} 3... cxd4 {[%clk 0:03:03.5]}
4. Nxd4 {[%clk 0:03:06.3]} 4... a6 {[%clk 0:03:04.6]} 5. Nc3 {[%clk 0:03:07.9]}
5... Qc7 {[%clk 0:03:06.3]} 6. Be3 {[%clk 0:03:08.7]} 6... b5 {[%clk 0:03:07.5]}
7. Bd3 {[%clk 0:03:00.1]} 7... Bb7 {[%clk 0:03:08.5]} 8. O-O {[%clk 0:03:01.6]}
8... Nf6 {[%clk 0:03:08.4]} 9. a3 {[%clk 0:02:53.7]} 9... d6 {[%clk 0:03:08.2]}
10. f4 {[%clk 0:02:48]} 10... Nbd7 {[%clk 0:03:09.7]} 11. Nb3 {[%clk 0:02:49.1]}
11... Be7 {[%clk 0:03:10.4]} 12. Qf3 {[%clk 0:02:50.1]} 12... O-O {[%clk
0:03:11]} 13. Rae1 {[%clk 0:02:45.8]} 13... Nc5 {[%clk 0:03:11.7]} 14. Qh3
{[%clk 0:02:42.8]} 14... Ncxe4 {[%clk 0:03:08.2]} 15. f5 {[%clk 0:02:19.8]}
15... Nxc3 {[%clk 0:03:03.8]} 16. bxc3 {[%clk 0:02:19.7]} 16... e5 {[%clk
0:03:04]} 17. g4 {[%clk 0:01:52.8]} 17... h6 {[%clk 0:03:01]} 18. Qg3 {[%clk
0:00:46.3]} 18... Rac8 {[%clk 0:02:44.4]} 19. h4 {[%clk 0:00:46]} 19... e4
{[%clk 0:02:43.2]} 20. Be2 {[%clk 0:00:40.4]} 20... d5 {[%clk 0:02:44.7]} 21.
Bf4 {[%clk 0:00:36.8]} 21... Qxc3 {[%clk 0:02:45.3]} 22. Qg2 {[%clk 0:00:33.9]}
22... Qxc2 {[%clk 0:02:43.4]} 23. g5 {[%clk 0:00:30.4]} 23... Qxb3 {[%clk
0:02:37.8]} 24. gxh6 {[%clk 0:00:26.5]} 24... Ne8 {[%clk 0:02:38]} 25. hxg7
{[%clk 0:00:20.1]} 25... Nxg7 {[%clk 0:02:38.8]} 26. Bh6 {[%clk 0:00:03.3]}
26... Qc3 {[%clk 0:02:27.3]} 27. f6 {[%clk 0:00:04.3]} 27... Bxf6 {[%clk
0:02:26.9]} 28. Kh1 {[%clk 0:00:02.9]} 28... Kh7 {[%clk 0:02:21]} 0-1

[Event "*** Titled Tuesday Blitz"]
[Site "Chess.com"]
[Date "2018.12.04"]
[Round "9"]
[White "pedromartinez91"]
[Black "hypert"]
[Result "0-1"]
[WhiteElo "2418"]
[BlackElo "2423"]
[TimeControl "180+2"]
[EndTime "15:07:29 PST"]
[Termination "hypert won by resignation"]

1. e4 {[%clk 0:03:01]} 1... c5 {[%clk 0:03:01.5]} 2. Nf3 {[%clk 0:03:01.7]} 2...
Nc6 {[%clk 0:03:03.1]} 3. d4 {[%clk 0:03:00]} 3... cxd4 {[%clk 0:03:05]} 4. Nxd4
{[%clk 0:03:01.3]} 4... Nf6 {[%clk 0:03:06.6]} 5. Nc3 {[%clk 0:03:01.7]} 5... d6
{[%clk 0:03:08.2]} 6. Be2 {[%clk 0:02:56.2]} 6... e5 {[%clk 0:03:09.2]} 7. Nb3
{[%clk 0:02:54.3]} 7... Be7 {[%clk 0:03:10.8]} 8. O-O {[%clk 0:02:55]} 8... O-O
{[%clk 0:03:10.2]} 9. Bf3 {[%clk 0:02:56]} 9... a5 {[%clk 0:03:10.9]} 10. a4
{[%clk 0:02:54.2]} 10... Be6 {[%clk 0:03:11.4]} 11. Re1 {[%clk 0:02:54.6]} 11...
Rc8 {[%clk 0:03:11.8]} 12. Bg5 {[%clk 0:02:55.3]} 12... h6 {[%clk 0:03:12.1]}
13. Bxf6 {[%clk 0:02:56.3]} 13... Bxf6 {[%clk 0:03:14]} 14. Nd2 {[%clk
0:02:56.9]} 14... Qb6 {[%clk 0:03:03.2]} 15. Nb5 {[%clk 0:02:43]} 15... Rfd8
{[%clk 0:03:04.2]} 16. c3 {[%clk 0:02:28.3]} 16... Ne7 {[%clk 0:02:44]} 17. Bg4
{[%clk 0:02:11.9]} 17... d5 {[%clk 0:02:21.5]} 18. Bxe6 {[%clk 0:02:10.3]} 18...
Qxe6 {[%clk 0:02:21.7]} 19. Qf3 {[%clk 0:01:56.6]} 19... d4 {[%clk 0:02:13.9]}
20. cxd4 {[%clk 0:01:46.7]} 20... exd4 {[%clk 0:02:14.3]} 21. e5 {[%clk
0:01:46.6]} 21... Bg5 {[%clk 0:02:15.3]} 22. Ne4 {[%clk 0:01:41.8]} 22... Nc6
{[%clk 0:02:12.6]} 23. Nbd6 {[%clk 0:01:20.4]} 23... Rc7 {[%clk 0:02:11.6]} 24.
Nxg5 {[%clk 0:00:29]} 24... hxg5 {[%clk 0:02:13.5]} 25. Qe4 {[%clk 0:00:15.9]}
25... Re7 {[%clk 0:02:10.6]} 26. Nf5 {[%clk 0:00:08.2]} 26... Ree8 {[%clk
0:02:11.7]} 27. Nd6 {[%clk 0:00:09.4]} 27... Rxd6 {[%clk 0:02:07.3]} 28. exd6
{[%clk 0:00:10.5]} 28... Qxe4 {[%clk 0:02:08.1]} 29. Rxe4 {[%clk 0:00:09.7]}
29... Rxe4 {[%clk 0:02:09.2]} 0-1

[Event "*** Titled Tuesday Blitz"]
[Site "Chess.com"]
[Date "2018.12.04"]
[Round "9"]
[White "Thjop"]
[Black "VladimirBelous"]
[Result "1-0"]
[WhiteElo "2689"]
[BlackElo "2740"]
[TimeControl "180+2"]
[EndTime "15:07:38 PST"]
[Termination "Thjop won by resignation"]

1. e4 {[%clk 0:03:01.9]} 1... c5 {[%clk 0:03:01]} 2. Nf3 {[%clk 0:03:02.3]} 2...
Nc6 {[%clk 0:03:02.6]} 3. Nc3 {[%clk 0:03:01.8]} 3... e6 {[%clk 0:03:02.5]} 4.
d4 {[%clk 0:03:01.6]} 4... cxd4 {[%clk 0:03:04.4]} 5. Nxd4 {[%clk 0:03:03.3]}
5... Qc7 {[%clk 0:03:06.1]} 6. Be3 {[%clk 0:03:04.8]} 6... Nf6 {[%clk
0:03:07.6]} 7. Be2 {[%clk 0:03:06.1]} 7... Be7 {[%clk 0:03:08.3]} 8. O-O {[%clk
0:03:06.6]} 8... O-O {[%clk 0:03:10]} 9. f4 {[%clk 0:03:07.6]} 9... d6 {[%clk
0:03:11.6]} 10. Qe1 {[%clk 0:03:08.9]} 10... Na5 {[%clk 0:03:00.8]} 11. Qg3
{[%clk 0:02:52]} 11... a6 {[%clk 0:02:46.9]} 12. Rae1 {[%clk 0:02:47.6]} 12...
b5 {[%clk 0:02:44.6]} 13. e5 {[%clk 0:02:26.8]} 13... dxe5 {[%clk 0:02:38.2]}
14. fxe5 {[%clk 0:02:27.5]} 14... Nd7 {[%clk 0:02:39.9]} 15. Bf3 {[%clk
0:02:25.1]} 15... Bb7 {[%clk 0:02:37.1]} 16. Bh6 {[%clk 0:02:24.8]} 16... g6
{[%clk 0:02:33.7]} 17. Bxf8 {[%clk 0:02:21.4]} 17... Rxf8 {[%clk 0:02:34.4]} 18.
Kh1 {[%clk 0:02:18.7]} 18... b4 {[%clk 0:02:31.2]} 19. Bxb7 {[%clk 0:02:15.9]}
19... bxc3 {[%clk 0:02:26]} 20. Bxa6 {[%clk 0:02:09.6]} 20... Qb6 {[%clk
0:02:17.9]} 21. b4 {[%clk 0:01:26.8]} 21... Bxb4 {[%clk 0:02:10.3]} 22. Bb5
{[%clk 0:01:25.7]} 22... Qxd4 {[%clk 0:02:01.1]} 23. Rd1 {[%clk 0:01:26.7]}
23... Qxe5 {[%clk 0:02:01.9]} 24. Bxd7 {[%clk 0:01:25.7]} 24... Qxg3 {[%clk
0:02:01.2]} 25. hxg3 {[%clk 0:01:27.6]} 25... Nc4 {[%clk 0:02:02.4]} 26. Rf4
{[%clk 0:01:19.3]} 26... Nb2 {[%clk 0:01:41.5]} 27. Rdf1 {[%clk 0:01:13.5]}
27... Be7 {[%clk 0:01:04]} 28. Rxf7 {[%clk 0:01:07.6]} 28... Rxf7 {[%clk
0:01:02.7]} 29. Bxe6 {[%clk 0:01:08.5]} 29... Bd6 {[%clk 0:01:02]} 30. Rxf7
{[%clk 0:01:07.5]} 1-0

[Event "*** Titled Tuesday Blitz"]
[Site "Chess.com"]
[Date "2018.12.04"]
[Round "9"]
[White "colegiodemadrid"]
[Black "KRASAVCHIK2002"]
[Result "1-0"]
[WhiteElo "2311"]
[BlackElo "2381"]
[TimeControl "180+2"]
[EndTime "15:07:52 PST"]
[Termination "colegiodemadrid won by resignation"]

1. e4 {[%clk 0:03:01.9]} 1... c5 {[%clk 0:02:58.5]} 2. Nf3 {[%clk 0:03:02.2]}
2... d6 {[%clk 0:02:59.6]} 3. d4 {[%clk 0:03:03.3]} 3... cxd4 {[%clk 0:03:01]}
4. Nxd4 {[%clk 0:03:04.9]} 4... Nf6 {[%clk 0:03:02.2]} 5. Nc3 {[%clk 0:03:06.4]}
5... a6 {[%clk 0:03:03.6]} 6. Bg5 {[%clk 0:03:08]} 6... e6 {[%clk 0:03:04.7]} 7.
f4 {[%clk 0:03:09.5]} 7... Qb6 {[%clk 0:03:05.7]} 8. Qd2 {[%clk 0:03:03.9]} 8...
Qxb2 {[%clk 0:03:06.4]} 9. Rb1 {[%clk 0:03:05.3]} 9... Qa3 {[%clk 0:03:07.3]}
10. f5 {[%clk 0:03:06.9]} 10... Nc6 {[%clk 0:03:03.5]} 11. fxe6 {[%clk
0:03:08.1]} 11... fxe6 {[%clk 0:03:01.3]} 12. Nxc6 {[%clk 0:03:09.6]} 12... bxc6
{[%clk 0:03:01.7]} 13. e5 {[%clk 0:03:11.2]} 13... dxe5 {[%clk 0:02:30.8]} 14.
Bxf6 {[%clk 0:03:11.7]} 14... gxf6 {[%clk 0:02:31]} 15. Ne4 {[%clk 0:03:13.3]}
15... f5 {[%clk 0:02:09.2]} 16. Be2 {[%clk 0:03:14.6]} 16... h5 {[%clk
0:01:22.6]} 17. Bxh5+ {[%clk 0:03:15.6]} 17... Rxh5 {[%clk 0:01:21]} 18. Nf6+
{[%clk 0:03:16.8]} 18... Kf7 {[%clk 0:01:18.1]} 19. Nxh5 {[%clk 0:03:18.4]}
19... Qd6 {[%clk 0:01:07.3]} 20. Qg5 {[%clk 0:03:08.6]} 20... Qe7 {[%clk
0:00:56.9]} 21. Qxe7+ {[%clk 0:03:06.4]} 21... Bxe7 {[%clk 0:00:57.3]} 22. O-O
{[%clk 0:03:08]} 22... a5 {[%clk 0:00:39.2]} 23. Ng3 {[%clk 0:03:02.8]} 23...
Ba6 {[%clk 0:00:38.5]} 24. Rfd1 {[%clk 0:03:01.7]} 24... e4 {[%clk 0:00:29.7]}
25. Kh1 {[%clk 0:02:55.6]} 25... Rd8 {[%clk 0:00:17.2]} 26. Rxd8 {[%clk
0:02:50.4]} 26... Bxd8 {[%clk 0:00:18.3]} 27. Kg1 {[%clk 0:02:52]} 27... Bc4
{[%clk 0:00:16.1]} 28. a3 {[%clk 0:02:51]} 28... Be7 {[%clk 0:00:16.9]} 29. a4
{[%clk 0:02:50.7]} 29... Bc5+ {[%clk 0:00:15.5]} 30. Kh1 {[%clk 0:02:52.1]}
30... e3 {[%clk 0:00:15]} 31. Re1 {[%clk 0:02:49.7]} 31... Kf6 {[%clk
0:00:09.4]} 32. h4 {[%clk 0:02:49.1]} 32... Bb6 {[%clk 0:00:08.2]} 33. h5 {[%clk
0:02:49.3]} 33... f4 {[%clk 0:00:09.2]} 34. Ne4+ {[%clk 0:02:48.4]} 34... Kg7
{[%clk 0:00:08.2]} 35. Nd6 {[%clk 0:02:43.2]} 35... Bd5 {[%clk 0:00:07.7]} 36.
c4 {[%clk 0:02:42.9]} 36... Bc5 {[%clk 0:00:06]} 37. cxd5 {[%clk 0:02:43.9]}
37... Bxd6 {[%clk 0:00:07.2]} 38. dxc6 {[%clk 0:02:44]} 38... Bc7 {[%clk
0:00:08]} 39. g3 {[%clk 0:02:43.6]} 39... e5 {[%clk 0:00:08.2]} 40. gxf4 {[%clk
0:02:45]} 40... exf4 {[%clk 0:00:09.6]} 41. Kg2 {[%clk 0:02:46.6]} 41... Kh6
{[%clk 0:00:11]} 42. Kf3 {[%clk 0:02:48.1]} 42... Kxh5 {[%clk 0:00:12.4]} 43.
Rd1 {[%clk 0:02:49.7]} 43... Kg6 {[%clk 0:00:13.2]} 44. Rd7 {[%clk 0:02:51.2]}
44... Bb6 {[%clk 0:00:14.4]} 45. c7 {[%clk 0:02:52]} 1-0

[Event "*** Titled Tuesday Blitz"]
[Site "Chess.com"]
[Date "2018.12.04"]
[Round "9"]
[White "Parhamov"]
[Black "David_Klein"]
[Result "1-0"]
[WhiteElo "2843"]
[BlackElo "2608"]
[TimeControl "180+2"]
[EndTime "15:08:04 PST"]
[Termination "Parhamov won on time"]

1. e4 {[%clk 0:03:01.9]} 1... g6 {[%clk 0:02:59.5]} 2. d4 {[%clk 0:03:02.9]}
2... Bg7 {[%clk 0:03:00.3]} 3. Nc3 {[%clk 0:03:04.5]} 3... d6 {[%clk 0:03:00.9]}
4. h4 {[%clk 0:03:03.3]} 4... h6 {[%clk 0:03:01]} 5. Be3 {[%clk 0:03:03.8]} 5...
a6 {[%clk 0:03:01.9]} 6. Qd2 {[%clk 0:03:03.5]} 6... b5 {[%clk 0:03:02.9]} 7. f3
{[%clk 0:03:04.9]} 7... Bb7 {[%clk 0:03:02.2]} 8. g4 {[%clk 0:03:06.1]} 8... Nf6
{[%clk 0:03:01]} 9. Bg2 {[%clk 0:03:00.2]} 9... b4 {[%clk 0:02:50.4]} 10. Nd1
{[%clk 0:02:57]} 10... a5 {[%clk 0:02:51]} 11. Nf2 {[%clk 0:02:57.8]} 11... Nbd7
{[%clk 0:02:48.6]} 12. Ne2 {[%clk 0:02:58.3]} 12... c5 {[%clk 0:02:39.4]} 13.
dxc5 {[%clk 0:02:55.5]} 13... dxc5 {[%clk 0:02:27.7]} 14. f4 {[%clk 0:02:54.7]}
14... Qc7 {[%clk 0:02:18.6]} 15. O-O-O {[%clk 0:02:43.4]} 15... Nb6 {[%clk
0:02:14.5]} 16. Ng3 {[%clk 0:02:16.3]} 16... Nc4 {[%clk 0:01:55.9]} 17. Qe2
{[%clk 0:02:17.3]} 17... Nxb2 {[%clk 0:01:29.8]} 18. e5 {[%clk 0:02:03.2]} 18...
Bxg2 {[%clk 0:01:28]} 19. exf6 {[%clk 0:02:04.3]} 19... Bxf6 {[%clk 0:01:24.7]}
20. Nfe4 {[%clk 0:02:05.6]} 20... Bxe4 {[%clk 0:01:23.4]} 21. Nxe4 {[%clk
0:02:06.3]} 21... Bg7 {[%clk 0:00:59.7]} 22. Qb5+ {[%clk 0:02:06.5]} 22... Kf8
{[%clk 0:00:54.5]} 23. Rd7 {[%clk 0:02:07.9]} 23... Qc8 {[%clk 0:00:43.7]} 24.
Bxc5 {[%clk 0:02:08.8]} 24... Rb8 {[%clk 0:00:30.8]} 25. Bxe7+ {[%clk
0:01:51.3]} 25... Kg8 {[%clk 0:00:14.1]} 26. Qd5 {[%clk 0:01:51.9]} 26... Qc4
{[%clk 0:00:04.2]} 27. Qxc4 {[%clk 0:01:44.6]} 27... Nxc4 {[%clk 0:00:06.1]} 28.
Nf6+ {[%clk 0:01:45.1]} 28... Bxf6 {[%clk 0:00:05.6]} 29. Bxf6 {[%clk
0:01:46.6]} 1-0

[Event "*** Titled Tuesday Blitz"]
[Site "Chess.com"]
[Date "2018.12.04"]
[Round "9"]
[White "vpantev"]
[Black "Muguet7"]
[Result "1-0"]
[WhiteElo "2621"]
[BlackElo "2455"]
[TimeControl "180+2"]
[EndTime "15:08:07 PST"]
[Termination "vpantev won by resignation"]

1. d4 {[%clk 0:03:01.9]} 1... Nf6 {[%clk 0:03:00.7]} 2. Nf3 {[%clk 0:03:01.4]}
2... e6 {[%clk 0:03:01.5]} 3. Bf4 {[%clk 0:03:01.5]} 3... d5 {[%clk 0:03:01.7]}
4. e3 {[%clk 0:03:02.9]} 4... Bd6 {[%clk 0:03:02.9]} 5. Bg3 {[%clk 0:03:03.8]}
5... b6 {[%clk 0:03:01.7]} 6. c4 {[%clk 0:03:04.9]} 6... Bb7 {[%clk 0:02:59.9]}
7. Nc3 {[%clk 0:03:06.1]} 7... O-O {[%clk 0:02:56.7]} 8. Rc1 {[%clk 0:03:05.6]}
8... Nbd7 {[%clk 0:02:56.7]} 9. a3 {[%clk 0:03:06.6]} 9... a6 {[%clk 0:02:50.2]}
10. Bd3 {[%clk 0:03:05.4]} 10... Qe7 {[%clk 0:02:45.3]} 11. cxd5 {[%clk
0:03:01.7]} 11... exd5 {[%clk 0:02:45.2]} 12. O-O {[%clk 0:03:02.3]} 12... c5
{[%clk 0:02:39.4]} 13. Bf5 {[%clk 0:02:50.8]} 13... g6 {[%clk 0:02:34.5]} 14.
Bxd7 {[%clk 0:02:49.5]} 14... Qxd7 {[%clk 0:02:31]} 15. dxc5 {[%clk 0:02:49.7]}
15... bxc5 {[%clk 0:02:31.4]} 16. Na4 {[%clk 0:02:40.6]} 16... Bxg3 {[%clk
0:02:03.6]} 17. hxg3 {[%clk 0:02:39.7]} 17... Qf5 {[%clk 0:01:43.6]} 18. Nxc5
{[%clk 0:02:37.7]} 18... Rab8 {[%clk 0:01:44.4]} 19. Nd4 {[%clk 0:02:32.1]}
19... Qg5 {[%clk 0:01:39.9]} 20. Qf3 {[%clk 0:02:30.8]} 20... Ng4 {[%clk
0:01:36.7]} 21. Qf4 {[%clk 0:02:16.7]} 21... Qh5 {[%clk 0:01:37]} 22. Nf3 {[%clk
0:02:14.8]} 22... d4 {[%clk 0:01:01.1]} 23. Nxb7 {[%clk 0:02:08.6]} 23... dxe3
{[%clk 0:00:56.9]} 24. Rc5 {[%clk 0:01:58.5]} 24... f5 {[%clk 0:00:47.9]} 25.
Qc4+ {[%clk 0:01:40.6]} 25... Kh8 {[%clk 0:00:34.4]} 26. Qc3+ {[%clk 0:01:40.3]}
26... Kg8 {[%clk 0:00:29.5]} 27. Rc7 {[%clk 0:01:39.9]} 27... Rf7 {[%clk
0:00:24.4]} 28. Rxf7 {[%clk 0:01:35.2]} 28... Kxf7 {[%clk 0:00:25.2]} 29. Qc7+
{[%clk 0:01:36.2]} 29... Kf6 {[%clk 0:00:26.2]} 30. Qxb8 {[%clk 0:01:26.7]}
30... exf2+ {[%clk 0:00:26.8]} 31. Rxf2 {[%clk 0:01:28]} 31... Nxf2 {[%clk
0:00:28.1]} 32. Kxf2 {[%clk 0:01:28.6]} 1-0

[Event "*** Titled Tuesday Blitz"]
[Site "Chess.com"]
[Date "2018.12.04"]
[Round "9"]
[White "MFguimaraes"]
[Black "VeraNebolsina"]
[Result "1-0"]
[WhiteElo "2355"]
[BlackElo "2362"]
[TimeControl "180+2"]
[EndTime "15:08:14 PST"]
[Termination "MFguimaraes won on time"]

1. e4 {[%clk 0:03:01.6]} 1... c5 {[%clk 0:02:58.8]} 2. Nf3 {[%clk 0:03:02.6]}
2... d6 {[%clk 0:02:58.9]} 3. Bb5+ {[%clk 0:03:03.6]} 3... Bd7 {[%clk
0:02:59.2]} 4. a4 {[%clk 0:03:03.9]} 4... Nf6 {[%clk 0:02:56.6]} 5. Nc3 {[%clk
0:03:03.8]} 5... g6 {[%clk 0:02:50.8]} 6. O-O {[%clk 0:03:03.8]} 6... Bg7 {[%clk
0:02:52.1]} 7. e5 {[%clk 0:03:04.7]} 7... dxe5 {[%clk 0:02:52.4]} 8. Nxe5 {[%clk
0:03:06.6]} 8... Bxb5 {[%clk 0:02:51.7]} 9. axb5 {[%clk 0:03:07]} 9... O-O
{[%clk 0:02:49.6]} 10. d3 {[%clk 0:03:04]} 10... Nbd7 {[%clk 0:02:49.3]} 11. Bf4
{[%clk 0:03:03.2]} 11... Nh5 {[%clk 0:02:46.8]} 12. Nxd7 {[%clk 0:03:04.1]}
12... Qxd7 {[%clk 0:02:48]} 13. Be3 {[%clk 0:03:03.4]} 13... b6 {[%clk
0:02:41.7]} 14. Qf3 {[%clk 0:02:59.4]} 14... f5 {[%clk 0:02:33.5]} 15. Ra2
{[%clk 0:02:54.5]} 15... e5 {[%clk 0:01:28.4]} 16. Qd5+ {[%clk 0:02:50.1]} 16...
Qxd5 {[%clk 0:01:26.6]} 17. Nxd5 {[%clk 0:02:52]} 17... Rad8 {[%clk 0:01:26.6]}
18. c4 {[%clk 0:02:51.3]} 18... Rd7 {[%clk 0:01:21.1]} 19. Rfa1 {[%clk
0:02:50.4]} 19... Rff7 {[%clk 0:01:19]} 20. g3 {[%clk 0:02:51.7]} 20... Bf8
{[%clk 0:01:14.2]} 21. Ra4 {[%clk 0:02:24.7]} 21... Bd6 {[%clk 0:01:14.2]} 22.
Bg5 {[%clk 0:02:22.4]} 22... Bb8 {[%clk 0:01:12.9]} 23. Re1 {[%clk 0:02:12]}
23... Kg7 {[%clk 0:01:09]} 24. Bd2 {[%clk 0:02:07]} 24... Nf6 {[%clk 0:01:08.2]}
25. Nxf6 {[%clk 0:02:04.3]} 25... Kxf6 {[%clk 0:01:08.8]} 26. Re3 {[%clk
0:01:54.6]} 26... Rd8 {[%clk 0:01:04.3]} 27. Bc3 {[%clk 0:01:54.8]} 27... Rfd7
{[%clk 0:00:40.3]} 28. Ra3 {[%clk 0:01:52.6]} 1-0